[Event "Late-Titled-Tuesday-Blitz-February-06-2024"]
[Site "Chess.com"]
[Date "2024.02.06"]
[Round "6"]
[White "smotherhubbard"]
[Black "Rawnsdale"]
[Result "0-1"]
[WhiteElo "2367"]
[BlackElo "2524"]
[TimeControl "180+1"]
[EndTime "15:05:19 PST"]
[Termination "Rawnsdale won by resignation"]

1. d4 {[%clk 0:03:00.9]} 1... d5 {[%clk 0:02:59.4]} 2. c4 {[%clk 0:03:00.7]}
2... e6 {[%clk 0:02:59]} 3. Nc3 {[%clk 0:03:00.5]} 3... Be7 {[%clk 0:02:59]} 4.
cxd5 {[%clk 0:02:51.1]} 4... exd5 {[%clk 0:02:59.9]} 5. Bf4 {[%clk 0:02:50.7]}
5... c6 {[%clk 0:03:00]} 6. e3 {[%clk 0:02:50.8]} 6... Bd6 {[%clk 0:03:00.1]} 7.
Bxd6 {[%clk 0:02:46.1]} 7... Qxd6 {[%clk 0:03:01]} 8. Bd3 {[%clk 0:02:46]} 8...
Ne7 {[%clk 0:03:00.6]} 9. Qc2 {[%clk 0:02:40]} 9... g6 {[%clk 0:02:45.8]} 10. h4
{[%clk 0:02:35.4]} 10... Bf5 {[%clk 0:02:44.9]} 11. h5 {[%clk 0:02:32]} 11...
Nd7 {[%clk 0:02:40.8]} 12. O-O-O {[%clk 0:02:26.7]} 12... Nf6 {[%clk 0:02:27.4]}
13. hxg6 {[%clk 0:02:21.1]} 13... fxg6 {[%clk 0:02:26.4]} 14. f3 {[%clk
0:02:16.1]} 14... Bxd3 {[%clk 0:02:15.9]} 15. Qxd3 {[%clk 0:02:17]} 15... O-O
{[%clk 0:02:16.2]} 16. Nge2 {[%clk 0:02:08]} 16... b5 {[%clk 0:02:06.5]} 17. Rh3
{[%clk 0:01:55.9]} 17... b4 {[%clk 0:02:05.4]} 18. Na4 {[%clk 0:01:53.8]} 18...
Rae8 {[%clk 0:02:02]} 19. Rdh1 {[%clk 0:01:49.1]} 19... Nf5 {[%clk 0:02:00.9]}
20. e4 {[%clk 0:01:30.6]} 20... dxe4 {[%clk 0:01:46.8]} 21. fxe4 {[%clk
0:01:27.8]} 21... Rxe4 {[%clk 0:01:44.9]} 22. Rxh7 {[%clk 0:01:25.6]} 22... Rxe2
{[%clk 0:01:18.6]} 23. Rh8+ {[%clk 0:01:21.8]} 23... Kg7 {[%clk 0:01:18.5]} 24.
Rxf8 {[%clk 0:01:20.1]} 24... Qf4+ {[%clk 0:01:18.7]} 25. Kb1 {[%clk 0:01:08.1]}
25... Re3 {[%clk 0:01:14.8]} 26. Qc4 {[%clk 0:00:27.2]} 26... Qe4+ {[%clk
0:01:05.8]} 27. Kc1 {[%clk 0:00:06]} 27... Re1+ {[%clk 0:01:04.3]} 28. Rxe1
{[%clk 0:00:05.3]} 28... Qxe1+ {[%clk 0:01:05.2]} 29. Kc2 {[%clk 0:00:05.6]}
29... Ne3+ {[%clk 0:01:05.2]} 30. Kd3 {[%clk 0:00:04.9]} 30... Nxc4 {[%clk
0:01:04.9]} 0-1

[Event "Late-Titled-Tuesday-Blitz-February-06-2024"]
[Site "Chess.com"]
[Date "2024.02.06"]
[Round "6"]
[White "DinaBelenkaya"]
[Black "shirovin"]
[Result "1-0"]
[WhiteElo "2432"]
[BlackElo "2098"]
[TimeControl "180+1"]
[EndTime "15:05:19 PST"]
[Termination "DinaBelenkaya won on time"]

1. Nf3 {[%clk 0:03:00.9]} 1... Nf6 {[%clk 0:02:58.8]} 2. g3 {[%clk 0:03:01.8]}
2... g6 {[%clk 0:02:56.8]} 3. Bg2 {[%clk 0:03:01.7]} 3... c6 {[%clk 0:02:57.3]}
4. d3 {[%clk 0:03:02.2]} 4... d5 {[%clk 0:02:57.1]} 5. Nbd2 {[%clk 0:03:02]}
5... Bg7 {[%clk 0:02:57.4]} 6. O-O {[%clk 0:03:00.9]} 6... O-O {[%clk
0:02:57.8]} 7. e4 {[%clk 0:03:00.5]} 7... dxe4 {[%clk 0:02:40.6]} 8. dxe4 {[%clk
0:03:00.1]} 8... Na6 {[%clk 0:02:28.2]} 9. c3 {[%clk 0:02:55.8]} 9... Nc5 {[%clk
0:02:27.3]} 10. e5 {[%clk 0:02:50.8]} 10... Nfd7 {[%clk 0:02:20]} 11. Qe2 {[%clk
0:02:49.8]} 11... Qc7 {[%clk 0:02:11.1]} 12. Re1 {[%clk 0:02:47.8]} 12... a5
{[%clk 0:02:00.3]} 13. Ne4 {[%clk 0:02:20.8]} 13... Nxe4 {[%clk 0:01:51.7]} 14.
Qxe4 {[%clk 0:02:21.7]} 14... Nc5 {[%clk 0:01:51.1]} 15. Qh4 {[%clk 0:02:12.1]}
15... Nd3 {[%clk 0:01:23.5]} 16. Bh6 {[%clk 0:02:10.2]} 16... f6 {[%clk
0:00:50.5]} 17. Bxg7 {[%clk 0:01:59.4]} 17... Kxg7 {[%clk 0:00:49.8]} 18. exf6+
{[%clk 0:01:48]} 18... exf6 {[%clk 0:00:47]} 19. Re3 {[%clk 0:01:48.2]} 19...
Nc5 {[%clk 0:00:33.8]} 20. Rae1 {[%clk 0:01:45.4]} 20... Rf7 {[%clk 0:00:33.5]}
21. Re8 {[%clk 0:01:43]} 21... b6 {[%clk 0:00:32.2]} 22. Nd4 {[%clk 0:01:42.5]}
22... Bb7 {[%clk 0:00:28]} 23. Rxa8 {[%clk 0:01:25.8]} 23... Bxa8 {[%clk
0:00:27.5]} 24. b4 {[%clk 0:01:26.5]} 24... axb4 {[%clk 0:00:26.9]} 25. cxb4
{[%clk 0:01:26.1]} 25... Re7 {[%clk 0:00:17.2]} 26. Rxe7+ {[%clk 0:01:23.7]}
26... Qxe7 {[%clk 0:00:16.1]} 27. bxc5 {[%clk 0:01:24.6]} 27... Qe1+ {[%clk
0:00:12.7]} 28. Bf1 {[%clk 0:01:22.9]} 28... bxc5 {[%clk 0:00:10.1]} 29. Nf3
{[%clk 0:01:22.8]} 29... Qd1 {[%clk 0:00:08.5]} 30. Qe4 {[%clk 0:01:21.5]} 30...
Qd5 {[%clk 0:00:05.5]} 31. Qe7+ {[%clk 0:01:21.4]} 31... Kh6 {[%clk 0:00:05.1]}
32. Qf8+ {[%clk 0:01:18.8]} 32... Kh5 {[%clk 0:00:03.5]} 33. Be2 {[%clk
0:01:17.7]} 33... Kg4 {[%clk 0:00:01.9]} 34. Qh6 {[%clk 0:01:13.2]} 1-0

[Event "Late-Titled-Tuesday-Blitz-February-06-2024"]
[Site "Chess.com"]
[Date "2024.02.06"]
[Round "6"]
[White "OglazaOskar2005"]
[Black "elchacal664"]
[Result "1-0"]
[WhiteElo "2611"]
[BlackElo "2401"]
[TimeControl "180+1"]
[EndTime "15:05:20 PST"]
[Termination "OglazaOskar2005 won by resignation"]

1. e4 {[%clk 0:03:00.9]} 1... c5 {[%clk 0:02:56.4]} 2. Nf3 {[%clk 0:03:00.3]}
2... d6 {[%clk 0:02:56.9]} 3. d4 {[%clk 0:03:00.8]} 3... cxd4 {[%clk 0:02:57.5]}
4. Nxd4 {[%clk 0:03:01.5]} 4... Nf6 {[%clk 0:02:57.9]} 5. Nc3 {[%clk 0:03:01.7]}
5... a6 {[%clk 0:02:58.8]} 6. h3 {[%clk 0:03:01.7]} 6... g6 {[%clk 0:02:59.2]}
7. g4 {[%clk 0:02:59.2]} 7... Bg7 {[%clk 0:02:59.6]} 8. Be3 {[%clk 0:02:59.3]}
8... O-O {[%clk 0:03:00]} 9. Bg2 {[%clk 0:02:58.3]} 9... Nc6 {[%clk 0:02:59.7]}
10. O-O {[%clk 0:02:54.5]} 10... Bd7 {[%clk 0:02:58]} 11. f4 {[%clk 0:02:47.8]}
11... Rc8 {[%clk 0:02:57.4]} 12. Qe2 {[%clk 0:02:28.6]} 12... Na5 {[%clk
0:02:52.9]} 13. e5 {[%clk 0:02:21.2]} 13... Ne8 {[%clk 0:02:50.1]} 14. Rad1
{[%clk 0:02:10]} 14... b5 {[%clk 0:02:31.7]} 15. Bf2 {[%clk 0:01:38]} 15... Nc4
{[%clk 0:02:26.7]} 16. e6 {[%clk 0:01:22.3]} 16... Bxd4 {[%clk 0:02:14.5]} 17.
Bxd4 {[%clk 0:01:23.2]} 17... fxe6 {[%clk 0:02:09.8]} 18. b3 {[%clk 0:01:23.2]}
18... Na5 {[%clk 0:01:56.1]} 19. Ne4 {[%clk 0:01:16.2]} 19... Qc7 {[%clk
0:01:48.3]} 20. Ng5 {[%clk 0:01:13.7]} 20... Ng7 {[%clk 0:01:25.7]} 21. f5
{[%clk 0:00:41.9]} 21... e5 {[%clk 0:01:24]} 22. fxg6 {[%clk 0:00:41.9]} 22...
h6 {[%clk 0:00:58.7]} 23. Nf7 {[%clk 0:00:36.4]} 23... exd4 {[%clk 0:00:55]} 24.
Nxh6+ {[%clk 0:00:35.1]} 24... Kh8 {[%clk 0:00:55.4]} 25. Qxe7 {[%clk
0:00:34.7]} 25... Rxf1+ {[%clk 0:00:32.6]} 26. Rxf1 {[%clk 0:00:35.6]} 26... Be6
{[%clk 0:00:30.7]} 27. Rf8+ {[%clk 0:00:33.7]} 1-0

[Event "Late-Titled-Tuesday-Blitz-February-06-2024"]
[Site "Chess.com"]
[Date "2024.02.06"]
[Round "6"]
[White "ChristopherYoo"]
[Black "GMKrikor"]
[Result "0-1"]
[WhiteElo "2995"]
[BlackElo "2836"]
[TimeControl "180+1"]
[EndTime "15:05:23 PST"]
[Termination "GMKrikor won by resignation"]

1. d4 {[%clk 0:03:00.3]} 1... Nf6 {[%clk 0:02:57.1]} 2. Nf3 {[%clk 0:03:00.8]}
2... g6 {[%clk 0:02:56.5]} 3. c4 {[%clk 0:03:01.3]} 3... Bg7 {[%clk 0:02:56.5]}
4. g3 {[%clk 0:03:02]} 4... d5 {[%clk 0:02:55.4]} 5. cxd5 {[%clk 0:03:01.8]}
5... Nxd5 {[%clk 0:02:55.7]} 6. Bg2 {[%clk 0:03:02.5]} 6... Nb6 {[%clk
0:02:56.2]} 7. O-O {[%clk 0:03:00.6]} 7... Nc6 {[%clk 0:02:54.4]} 8. e3 {[%clk
0:03:00.4]} 8... e5 {[%clk 0:02:54.7]} 9. Nxe5 {[%clk 0:02:57.3]} 9... Nxe5
{[%clk 0:02:54.1]} 10. dxe5 {[%clk 0:02:57.7]} 10... Qxd1 {[%clk 0:02:54.4]} 11.
Rxd1 {[%clk 0:02:58.4]} 11... Bxe5 {[%clk 0:02:54.4]} 12. f4 {[%clk 0:02:45.6]}
12... Bg7 {[%clk 0:02:50]} 13. e4 {[%clk 0:02:45]} 13... Bg4 {[%clk 0:02:47]}
14. Re1 {[%clk 0:02:43.6]} 14... Be6 {[%clk 0:02:13.5]} 15. e5 {[%clk
0:02:35.8]} 15... O-O-O {[%clk 0:02:07]} 16. Nc3 {[%clk 0:02:34.7]} 16... Rhe8
{[%clk 0:02:02.7]} 17. Ne4 {[%clk 0:02:22.3]} 17... Bd5 {[%clk 0:01:57]} 18. Be3
{[%clk 0:01:59.6]} 18... Nc4 {[%clk 0:01:48.1]} 19. Bxa7 {[%clk 0:01:51.4]}
19... b6 {[%clk 0:01:09.4]} 20. Rac1 {[%clk 0:01:43.7]} 20... Kb7 {[%clk
0:00:46.1]} 21. Nd6+ {[%clk 0:01:24.1]} 21... Rxd6 {[%clk 0:00:10.4]} 22. exd6
{[%clk 0:01:17.6]} 22... Bd4+ {[%clk 0:00:10.2]} 23. Kh1 {[%clk 0:01:17.2]}
23... Rxe1+ {[%clk 0:00:10.1]} 24. Rxe1 {[%clk 0:01:16.7]} 24... Bxg2+ {[%clk
0:00:10.4]} 25. Kxg2 {[%clk 0:01:17.6]} 25... Nxd6 {[%clk 0:00:10.5]} 26. Re7
{[%clk 0:01:13.2]} 26... Bf6 {[%clk 0:00:08.3]} 27. Rd7 {[%clk 0:01:03.7]} 27...
Kc6 {[%clk 0:00:06.7]} 28. Rxd6+ {[%clk 0:01:00.4]} 28... Kxd6 {[%clk
0:00:07.6]} 29. a4 {[%clk 0:00:57.9]} 29... Kc6 {[%clk 0:00:08]} 30. a5 {[%clk
0:00:58.4]} 30... Kb7 {[%clk 0:00:08.4]} 0-1

[Event "Late-Titled-Tuesday-Blitz-February-06-2024"]
[Site "Chess.com"]
[Date "2024.02.06"]
[Round "6"]
[White "OparinGrigoriy"]
[Black "Rutricks"]
[Result "0-1"]
[WhiteElo "2972"]
[BlackElo "2737"]
[TimeControl "180+1"]
[EndTime "15:05:26 PST"]
[Termination "Rutricks won by resignation"]

1. a3 {[%clk 0:03:00.9]} 1... g6 {[%clk 0:02:56.9]} 2. h4 {[%clk 0:02:59.3]}
2... Nf6 {[%clk 0:02:56.2]} 3. b4 {[%clk 0:02:59]} 3... a5 {[%clk 0:02:49.3]} 4.
b5 {[%clk 0:02:56.8]} 4... c6 {[%clk 0:02:46.2]} 5. a4 {[%clk 0:02:54.8]} 5...
d5 {[%clk 0:02:46.8]} 6. Bb2 {[%clk 0:02:55.1]} 6... Bg7 {[%clk 0:02:47.3]} 7.
Nf3 {[%clk 0:02:55.3]} 7... O-O {[%clk 0:02:46.6]} 8. e3 {[%clk 0:02:56]} 8...
Re8 {[%clk 0:02:43.3]} 9. c4 {[%clk 0:02:52.5]} 9... Bg4 {[%clk 0:02:41.3]} 10.
Qc2 {[%clk 0:02:43.6]} 10... Bxf3 {[%clk 0:02:26.7]} 11. gxf3 {[%clk 0:02:44.5]}
11... e5 {[%clk 0:02:27.4]} 12. Na3 {[%clk 0:02:34.1]} 12... Nbd7 {[%clk
0:02:27.2]} 13. bxc6 {[%clk 0:02:32.2]} 13... bxc6 {[%clk 0:02:27.2]} 14. cxd5
{[%clk 0:02:32.9]} 14... cxd5 {[%clk 0:02:20.2]} 15. Nb5 {[%clk 0:02:33.2]}
15... Rc8 {[%clk 0:02:20.7]} 16. Qb1 {[%clk 0:02:29.4]} 16... Nc5 {[%clk
0:01:51.5]} 17. Be2 {[%clk 0:02:28.8]} 17... d4 {[%clk 0:01:38.2]} 18. Ba3
{[%clk 0:02:28.5]} 18... Nd5 {[%clk 0:01:11.2]} 19. Bxc5 {[%clk 0:02:20.4]}
19... Rxc5 {[%clk 0:01:11.1]} 20. Qb3 {[%clk 0:02:21.1]} 20... Nb4 {[%clk
0:00:54.4]} 21. Rb1 {[%clk 0:02:18]} 21... e4 {[%clk 0:00:48]} 22. fxe4 {[%clk
0:02:12.1]} 22... Rxe4 {[%clk 0:00:44.6]} 23. h5 {[%clk 0:02:04.9]} 23... dxe3
{[%clk 0:00:34.5]} 24. dxe3 {[%clk 0:02:02.3]} 24... Nc2+ {[%clk 0:00:30.9]} 25.
Kf1 {[%clk 0:02:02.2]} 25... Qf6 {[%clk 0:00:27.9]} 26. Rh3 {[%clk 0:01:55.5]}
26... Qf5 {[%clk 0:00:15.6]} 27. Rg3 {[%clk 0:01:44.7]} 27... Rb4 {[%clk
0:00:14.9]} 28. Nd6 {[%clk 0:01:18.8]} 28... Rxb3 {[%clk 0:00:14.3]} 29. Rxb3
{[%clk 0:01:19.7]} 29... Qd5 {[%clk 0:00:06.9]} 30. Rb8+ {[%clk 0:01:17.8]}
30... Bf8 {[%clk 0:00:07.5]} 31. Ne8 {[%clk 0:01:18.3]} 31... Qh1+ {[%clk
0:00:06.5]} 32. Rg1 {[%clk 0:01:18.9]} 32... Nxe3+ {[%clk 0:00:06]} 33. fxe3
{[%clk 0:01:13.9]} 33... Rf5+ {[%clk 0:00:06.6]} 34. Ke1 {[%clk 0:01:12.1]}
34... Qxg1+ {[%clk 0:00:06.9]} 35. Kd2 {[%clk 0:01:13]} 35... Rd5+ {[%clk
0:00:06.9]} 36. Kc2 {[%clk 0:01:13.2]} 36... Qf2 {[%clk 0:00:05.2]} 37. Kb3
{[%clk 0:01:11.7]} 37... Qxe3+ {[%clk 0:00:05.2]} 38. Ka2 {[%clk 0:01:11.8]}
38... Rd2+ {[%clk 0:00:05.4]} 0-1

[Event "Late-Titled-Tuesday-Blitz-February-06-2024"]
[Site "Chess.com"]
[Date "2024.02.06"]
[Round "6"]
[White "protectiago"]
[Black "OneTrickPony_82"]
[Result "0-1"]
[WhiteElo "2104"]
[BlackElo "2534"]
[TimeControl "180+1"]
[EndTime "15:05:27 PST"]
[Termination "OneTrickPony_82 won on time"]

1. d4 {[%clk 0:02:57.8]} 1... d5 {[%clk 0:02:58.8]} 2. c4 {[%clk 0:02:57.5]}
2... e6 {[%clk 0:02:59.1]} 3. g3 {[%clk 0:02:57.4]} 3... Nf6 {[%clk 0:02:58.1]}
4. Nf3 {[%clk 0:02:57.2]} 4... dxc4 {[%clk 0:02:57.1]} 5. Bg2 {[%clk 0:02:15.1]}
5... c5 {[%clk 0:02:54.2]} 6. O-O {[%clk 0:02:10.2]} 6... Nc6 {[%clk 0:02:51.9]}
7. Qa4 {[%clk 0:02:05.3]} 7... Bd7 {[%clk 0:02:50.9]} 8. dxc5 {[%clk 0:02:01.8]}
8... Na5 {[%clk 0:02:46.7]} 9. Qc2 {[%clk 0:01:58.3]} 9... Bxc5 {[%clk
0:02:41.1]} 10. Nbd2 {[%clk 0:01:54]} 10... Rc8 {[%clk 0:02:36.4]} 11. e4 {[%clk
0:01:47.1]} 11... O-O {[%clk 0:02:30.3]} 12. e5 {[%clk 0:01:47.4]} 12... Nd5
{[%clk 0:02:28.9]} 13. Ne4 {[%clk 0:01:47.5]} 13... Be7 {[%clk 0:02:21.4]} 14.
Neg5 {[%clk 0:01:45.3]} 14... g6 {[%clk 0:02:16.2]} 15. Qe4 {[%clk 0:01:45.2]}
15... Kg7 {[%clk 0:02:01.9]} 16. Qh4 {[%clk 0:01:35.1]} 16... Rh8 {[%clk
0:01:26.3]} 17. Qg4 {[%clk 0:00:53.2]} 17... c3 {[%clk 0:01:17.7]} 18. Ne4
{[%clk 0:00:45.1]} 18... cxb2 {[%clk 0:01:09.3]} 19. Bxb2 {[%clk 0:00:42]} 19...
Rc4 {[%clk 0:01:05.9]} 20. Nd4 {[%clk 0:00:32.1]} 20... Qb6 {[%clk 0:00:59.2]}
21. Ng5 {[%clk 0:00:10.6]} 21... Qxb2 {[%clk 0:00:53.5]} 22. Nxf7 {[%clk
0:00:06.6]} 22... Qxd4 {[%clk 0:00:48.2]} 23. Qf3 {[%clk 0:00:03.6]} 23... Rf8
{[%clk 0:00:46.2]} 0-1

[Event "Late-Titled-Tuesday-Blitz-February-06-2024"]
[Site "Chess.com"]
[Date "2024.02.06"]
[Round "6"]
[White "TigrVShlyape"]
[Black "KantorGergely"]
[Result "0-1"]
[WhiteElo "2917"]
[BlackElo "2771"]
[TimeControl "180+1"]
[EndTime "15:05:37 PST"]
[Termination "KantorGergely won on time"]

1. d4 {[%clk 0:03:00.9]} 1... Nf6 {[%clk 0:02:56.1]} 2. Bf4 {[%clk 0:02:59.9]}
2... d5 {[%clk 0:02:55]} 3. e3 {[%clk 0:02:59.4]} 3... e6 {[%clk 0:02:53.9]} 4.
Nf3 {[%clk 0:02:59]} 4... Bd6 {[%clk 0:02:54]} 5. Bg3 {[%clk 0:02:52.9]} 5...
Ne4 {[%clk 0:02:53.3]} 6. Nbd2 {[%clk 0:02:44.8]} 6... Nxg3 {[%clk 0:02:52.4]}
7. hxg3 {[%clk 0:02:44.6]} 7... Nd7 {[%clk 0:02:51.9]} 8. Bd3 {[%clk 0:02:40.4]}
8... e5 {[%clk 0:02:47.1]} 9. dxe5 {[%clk 0:02:18.8]} 9... Nxe5 {[%clk
0:02:46.8]} 10. Nxe5 {[%clk 0:02:12.5]} 10... Bxe5 {[%clk 0:02:46.8]} 11. c3
{[%clk 0:02:12.1]} 11... g6 {[%clk 0:02:46.5]} 12. Nf3 {[%clk 0:02:10.4]} 12...
Bg7 {[%clk 0:02:44.9]} 13. Qa4+ {[%clk 0:02:10]} 13... c6 {[%clk 0:02:29.9]} 14.
Qf4 {[%clk 0:01:45]} 14... Qe7 {[%clk 0:02:18.6]} 15. O-O-O {[%clk 0:01:23.4]}
15... h6 {[%clk 0:01:58.8]} 16. e4 {[%clk 0:01:15.8]} 16... dxe4 {[%clk
0:01:58.5]} 17. Qxe4 {[%clk 0:01:14.6]} 17... Qxe4 {[%clk 0:01:54.1]} 18. Bxe4
{[%clk 0:01:14.8]} 18... Be6 {[%clk 0:01:51.4]} 19. Kc2 {[%clk 0:01:11.5]} 19...
a5 {[%clk 0:01:46]} 20. a4 {[%clk 0:01:09.5]} 20... Rd8 {[%clk 0:01:40.4]} 21.
Rxd8+ {[%clk 0:01:03]} 21... Kxd8 {[%clk 0:01:40.7]} 22. Rd1+ {[%clk 0:01:03]}
22... Ke7 {[%clk 0:01:39.3]} 23. Nd4 {[%clk 0:01:03.1]} 23... Bd7 {[%clk
0:01:22.1]} 24. Nb3 {[%clk 0:00:54.3]} 24... b6 {[%clk 0:01:22.1]} 25. Re1
{[%clk 0:00:49.1]} 25... Kd6 {[%clk 0:01:21.4]} 26. Rd1+ {[%clk 0:00:47.1]}
26... Kc7 {[%clk 0:01:21.1]} 27. Bf3 {[%clk 0:00:35.6]} 27... Bf5+ {[%clk
0:01:14.7]} 28. Kc1 {[%clk 0:00:19.6]} 28... h5 {[%clk 0:01:14.7]} 29. Be2
{[%clk 0:00:06.3]} 29... Bh6+ {[%clk 0:01:12.1]} 30. Nd2 {[%clk 0:00:06]} 30...
Rd8 {[%clk 0:01:11.6]} 31. Bf1 {[%clk 0:00:04.3]} 31... Be6 {[%clk 0:00:54.3]}
32. Be2 {[%clk 0:00:03.3]} 32... Bb3 {[%clk 0:00:52.9]} 0-1

[Event "Late-Titled-Tuesday-Blitz-February-06-2024"]
[Site "Chess.com"]
[Date "2024.02.06"]
[Round "6"]
[White "mishanick"]
[Black "dennisodessa"]
[Result "1-0"]
[WhiteElo "3043"]
[BlackElo "2596"]
[TimeControl "180+1"]
[EndTime "15:05:40 PST"]
[Termination "mishanick won by resignation"]

1. d4 {[%clk 0:02:53.1]} 1... Nf6 {[%clk 0:02:59.6]} 2. c4 {[%clk 0:02:53.5]}
2... e6 {[%clk 0:03:00.1]} 3. Nf3 {[%clk 0:02:54.1]} 3... Bb4+ {[%clk
0:03:00.8]} 4. Bd2 {[%clk 0:02:54.1]} 4... a5 {[%clk 0:03:01.5]} 5. a3 {[%clk
0:02:50.4]} 5... Bxd2+ {[%clk 0:03:01.4]} 6. Qxd2 {[%clk 0:02:51.3]} 6... b6
{[%clk 0:03:01.5]} 7. Nc3 {[%clk 0:02:50.1]} 7... Bb7 {[%clk 0:03:02.2]} 8. e3
{[%clk 0:02:50.7]} 8... d6 {[%clk 0:03:01.5]} 9. Bd3 {[%clk 0:02:50.2]} 9...
Nbd7 {[%clk 0:03:01.4]} 10. e4 {[%clk 0:02:48.4]} 10... e5 {[%clk 0:03:01.8]}
11. d5 {[%clk 0:02:48.7]} 11... Nc5 {[%clk 0:03:01]} 12. Bc2 {[%clk 0:02:49.3]}
12... a4 {[%clk 0:03:00.6]} 13. O-O {[%clk 0:02:48.8]} 13... O-O {[%clk
0:03:00.6]} 14. Qe2 {[%clk 0:02:46.5]} 14... Bc8 {[%clk 0:02:58.2]} 15. Ne1
{[%clk 0:02:46.5]} 15... Qe7 {[%clk 0:02:43.5]} 16. Nd3 {[%clk 0:02:45.1]} 16...
Nfd7 {[%clk 0:02:41.3]} 17. Nb4 {[%clk 0:02:44.1]} 17... Nb8 {[%clk 0:02:27.3]}
18. Rae1 {[%clk 0:02:42.9]} 18... Bd7 {[%clk 0:02:27.5]} 19. h3 {[%clk
0:02:32.8]} 19... Nba6 {[%clk 0:02:24.1]} 20. Qd1 {[%clk 0:02:23.7]} 20... Qe8
{[%clk 0:02:20.5]} 21. Kh2 {[%clk 0:02:20.1]} 21... f5 {[%clk 0:02:11.7]} 22.
exf5 {[%clk 0:02:19.5]} 22... Bxf5 {[%clk 0:02:12.6]} 23. Bxf5 {[%clk
0:02:18.1]} 23... Rxf5 {[%clk 0:02:11]} 24. Nc6 {[%clk 0:02:17.8]} 24... Nb8
{[%clk 0:02:11.3]} 25. Nb4 {[%clk 0:02:15.3]} 25... Nbd7 {[%clk 0:01:55.1]} 26.
f4 {[%clk 0:02:14.6]} 26... Qf7 {[%clk 0:01:48.6]} 27. fxe5 {[%clk 0:02:06]}
27... Nxe5 {[%clk 0:01:49.5]} 28. Rxf5 {[%clk 0:01:59.5]} 28... Qxf5 {[%clk
0:01:50.4]} 29. Rf1 {[%clk 0:01:59.9]} 29... Qd7 {[%clk 0:01:29.9]} 30. Nc6
{[%clk 0:01:57.2]} 30... Nxc4 {[%clk 0:01:19.3]} 31. Qe2 {[%clk 0:01:47.5]}
31... Ne5 {[%clk 0:01:19.2]} 32. Nxe5 {[%clk 0:01:47.3]} 32... dxe5 {[%clk
0:01:20.1]} 33. Qxe5 {[%clk 0:01:47.9]} 33... Re8 {[%clk 0:01:20.7]} 34. Qf4
{[%clk 0:01:42.7]} 34... Qd6 {[%clk 0:00:44.9]} 35. Qxd6 {[%clk 0:01:42.3]}
35... cxd6 {[%clk 0:00:45.8]} 36. Rf4 {[%clk 0:01:42.9]} 36... Re3 {[%clk
0:00:43.3]} 37. Rb4 {[%clk 0:01:38.1]} 37... Nd7 {[%clk 0:00:17.7]} 38. Rxa4
{[%clk 0:01:37.8]} 38... Rd3 {[%clk 0:00:18]} 39. Ra7 {[%clk 0:01:36.7]} 39...
Nf6 {[%clk 0:00:18.1]} 40. Rb7 {[%clk 0:01:37]} 40... Nxd5 {[%clk 0:00:18.4]}
41. Nxd5 {[%clk 0:01:37.1]} 41... Rxd5 {[%clk 0:00:19.3]} 42. Rxb6 {[%clk
0:01:37.7]} 42... Rd2 {[%clk 0:00:19.6]} 43. a4 {[%clk 0:01:38]} 43... Rd1
{[%clk 0:00:15.9]} 44. a5 {[%clk 0:01:38.5]} 44... Ra1 {[%clk 0:00:16.3]} 45. b4
{[%clk 0:01:39]} 45... d5 {[%clk 0:00:16.7]} 46. Rd6 {[%clk 0:01:34.5]} 46...
Rb1 {[%clk 0:00:16.6]} 47. a6 {[%clk 0:01:34.4]} 47... Rxb4 {[%clk 0:00:17.1]}
48. a7 {[%clk 0:01:34.6]} 48... Ra4 {[%clk 0:00:17.8]} 49. Rd8+ {[%clk
0:01:35.2]} 49... Kf7 {[%clk 0:00:18.3]} 50. a8=Q {[%clk 0:01:36.1]} 50... Rxa8
{[%clk 0:00:18.7]} 51. Rxa8 {[%clk 0:01:37]} 51... Ke6 {[%clk 0:00:19.3]} 52.
Kg3 {[%clk 0:01:37.9]} 52... Ke5 {[%clk 0:00:19.6]} 53. Kf2 {[%clk 0:01:38.8]}
53... Kd4 {[%clk 0:00:20.1]} 54. Ke2 {[%clk 0:01:39.7]} 54... Kc3 {[%clk
0:00:20.7]} 55. Rg8 {[%clk 0:01:40.2]} 55... g6 {[%clk 0:00:20.2]} 56. Rg7
{[%clk 0:01:40.6]} 56... d4 {[%clk 0:00:20.7]} 57. Rc7+ {[%clk 0:01:41.5]} 57...
Kb2 {[%clk 0:00:20.2]} 58. Rxh7 {[%clk 0:01:42.4]} 58... Kc2 {[%clk 0:00:19.5]}
59. Rc7+ {[%clk 0:01:43.3]} 59... Kb2 {[%clk 0:00:19.9]} 60. Kd3 {[%clk
0:01:44.2]} 1-0

[Event "Late-Titled-Tuesday-Blitz-February-06-2024"]
[Site "Chess.com"]
[Date "2024.02.06"]
[Round "6"]
[White "N_I_Chess"]
[Black "ImportedItalianMaple"]
[Result "0-1"]
[WhiteElo "2333"]
[BlackElo "2506"]
[TimeControl "180+1"]
[EndTime "15:05:43 PST"]
[Termination "ImportedItalianMaple won by checkmate"]

1. d4 {[%clk 0:02:53.3]} 1... g6 {[%clk 0:02:59.9]} 2. c4 {[%clk 0:02:52.6]}
2... Bg7 {[%clk 0:03:00.2]} 3. Nc3 {[%clk 0:02:53.2]} 3... c5 {[%clk 0:03:00.8]}
4. d5 {[%clk 0:02:53.8]} 4... Bxc3+ {[%clk 0:03:00.9]} 5. bxc3 {[%clk
0:02:54.7]} 5... e5 {[%clk 0:02:59.2]} 6. e4 {[%clk 0:02:38.8]} 6... d6 {[%clk
0:02:58.2]} 7. Bd3 {[%clk 0:02:37.9]} 7... Kd7 {[%clk 0:02:57.6]} 8. f4 {[%clk
0:02:32.1]} 8... f6 {[%clk 0:02:55.7]} 9. Nf3 {[%clk 0:02:29.4]} 9... Kc7 {[%clk
0:02:55.3]} 10. fxe5 {[%clk 0:02:27]} 10... fxe5 {[%clk 0:02:55.2]} 11. Bg5
{[%clk 0:02:18]} 11... Nf6 {[%clk 0:02:54.7]} 12. O-O {[%clk 0:02:17.7]} 12...
Nbd7 {[%clk 0:02:54]} 13. a4 {[%clk 0:02:06.6]} 13... h6 {[%clk 0:02:53.4]} 14.
Bxf6 {[%clk 0:01:51.9]} 14... Qxf6 {[%clk 0:02:51.5]} 15. Nd4 {[%clk 0:01:48.5]}
15... Qe7 {[%clk 0:02:43.2]} 16. Ne6+ {[%clk 0:01:36.8]} 16... Kb8 {[%clk
0:02:43.3]} 17. Ra2 {[%clk 0:01:21.5]} 17... Nb6 {[%clk 0:01:55.7]} 18. a5
{[%clk 0:00:58.8]} 18... Bxe6 {[%clk 0:01:55]} 19. axb6 {[%clk 0:00:17.8]} 19...
Bd7 {[%clk 0:01:55.3]} 20. Raf2 {[%clk 0:00:13.9]} 20... Be8 {[%clk 0:01:48.3]}
21. Rf6 {[%clk 0:00:11.2]} 21... axb6 {[%clk 0:01:46.7]} 22. Re6 {[%clk
0:00:11.2]} 22... Qg5 {[%clk 0:01:38.2]} 23. Rxd6 {[%clk 0:00:10.1]} 23... Qe3+
{[%clk 0:01:38.2]} 24. Kh1 {[%clk 0:00:10.6]} 24... Ra2 {[%clk 0:01:37.6]} 25.
Rxb6 {[%clk 0:00:10.3]} 25... Rh7 {[%clk 0:01:13.5]} 26. Rf8 {[%clk 0:00:04.8]}
26... Ka7 {[%clk 0:01:14.1]} 27. Rb1 {[%clk 0:00:03.8]} 27... Ba4 {[%clk
0:01:09.2]} 28. Qc1 {[%clk 0:00:02.1]} 28... Qxd3 {[%clk 0:01:06.8]} 29. Ra1
{[%clk 0:00:02.8]} 29... Qxc4 {[%clk 0:00:56.2]} 30. Rxa2 {[%clk 0:00:01.7]}
30... Qxa2 {[%clk 0:00:56.9]} 31. d6 {[%clk 0:00:01.6]} 31... Rd7 {[%clk
0:00:55.8]} 32. Qd2 {[%clk 0:00:01.9]} 32... Qb1+ {[%clk 0:00:55.3]} 33. Rf1
{[%clk 0:00:02.3]} 33... Qxf1# {[%clk 0:00:55.5]} 0-1